[Event "*** Titled Tuesday Blitz"]
[Site "Chess.com"]
[Date "2019.05.07"]
[Round "8"]
[White "chessking2151"]
[Black "Taron_Shagbazyan"]
[Result "0-1"]
[WhiteElo "2597"]
[BlackElo "2733"]
[TimeControl "180+2"]
[EndTime "14:54:34 PDT"]
[Termination "Taron_Shagbazyan won by resignation"]

1. e4 {[%clk 0:03:01.9]} 1... e5 {[%clk 0:02:55.2]} 2. Nf3 {[%clk 0:02:58.4]}
2... Nc6 {[%clk 0:02:56.4]} 3. Bb5 {[%clk 0:02:43.8]} 3... a6 {[%clk 0:02:57.2]}
4. Ba4 {[%clk 0:02:45]} 4... Nf6 {[%clk 0:02:58.3]} 5. O-O {[%clk 0:02:46.6]}
5... Be7 {[%clk 0:02:57.9]} 6. Re1 {[%clk 0:02:44.1]} 6... b5 {[%clk 0:02:59]}
7. Bb3 {[%clk 0:02:45.3]} 7... d6 {[%clk 0:03:00.5]} 8. c3 {[%clk 0:02:45.2]}
8... O-O {[%clk 0:03:01.1]} 9. h3 {[%clk 0:02:46.3]} 9... Nb8 {[%clk 0:03:01.6]}
10. d4 {[%clk 0:02:47.4]} 10... Nbd7 {[%clk 0:03:03.1]} 11. Nbd2 {[%clk
0:02:49]} 11... Bb7 {[%clk 0:03:04.1]} 12. Bc2 {[%clk 0:02:47.9]} 12... c6
{[%clk 0:03:05]} 13. b3 {[%clk 0:02:34.9]} 13... Re8 {[%clk 0:03:05.6]} 14. Bb2
{[%clk 0:02:34.2]} 14... Bf8 {[%clk 0:03:05.9]} 15. Bd3 {[%clk 0:02:25.3]} 15...
Qb6 {[%clk 0:03:01.4]} 16. a4 {[%clk 0:02:23.8]} 16... g6 {[%clk 0:02:37.7]} 17.
Qc2 {[%clk 0:02:16.3]} 17... Bg7 {[%clk 0:02:35.4]} 18. c4 {[%clk 0:02:11.2]}
18... Nh5 {[%clk 0:02:23]} 19. d5 {[%clk 0:00:48]} 19... cxd5 {[%clk 0:02:23.3]}
20. cxd5 {[%clk 0:00:48.7]} 20... Rac8 {[%clk 0:02:14.1]} 21. Qb1 {[%clk
0:00:48.5]} 21... Bh6 {[%clk 0:02:01.6]} 22. a5 {[%clk 0:00:44.1]} 22... Qa7
{[%clk 0:02:00.3]} 23. Nf1 {[%clk 0:00:36.4]} 23... Rc7 {[%clk 0:01:48.5]} 24.
Ba3 {[%clk 0:00:36.4]} 24... Nc5 {[%clk 0:01:46.3]} 25. Be2 {[%clk 0:00:35.5]}
25... Rec8 {[%clk 0:01:45.6]} 26. Bb4 {[%clk 0:00:29.4]} 26... Nf4 {[%clk
0:01:36.3]} 27. Ng3 {[%clk 0:00:18.4]} 27... Bf8 {[%clk 0:01:32.4]} 28. Bf1
{[%clk 0:00:13.2]} 28... h5 {[%clk 0:01:33.7]} 29. Ne2 {[%clk 0:00:11.8]} 29...
Nfd3 {[%clk 0:01:34.2]} 30. Bxc5 {[%clk 0:00:10.9]} 30... Nxc5 {[%clk
0:01:34.3]} 31. Rd1 {[%clk 0:00:09.8]} 31... Bh6 {[%clk 0:01:31.9]} 32. Ng3
{[%clk 0:00:08.1]} 32... Nd7 {[%clk 0:01:28.8]} 33. Bd3 {[%clk 0:00:08.4]} 33...
Rc3 {[%clk 0:01:29.2]} 34. Qb2 {[%clk 0:00:08.5]} 34... Nf6 {[%clk 0:01:17.1]}
35. Ne2 {[%clk 0:00:07.2]} 35... R3c7 {[%clk 0:01:14.6]} 36. Ng3 {[%clk
0:00:06.3]} 36... Qc5 {[%clk 0:01:12.6]} 37. Qe2 {[%clk 0:00:06.2]} 37... Qb4
{[%clk 0:01:12.8]} 38. Rab1 {[%clk 0:00:04.8]} 38... Qxa5 {[%clk 0:01:12.8]} 39.
Nh4 {[%clk 0:00:06.1]} 39... Bf4 {[%clk 0:01:07.4]} 40. Ngf5 {[%clk 0:00:05.1]}
40... gxf5 {[%clk 0:01:08.1]} 41. Nxf5 {[%clk 0:00:07]} 41... Qa3 {[%clk
0:00:55.2]} 42. g3 {[%clk 0:00:07.9]} 42... Bc1 {[%clk 0:00:55.6]} 43. Kg2
{[%clk 0:00:08.6]} 43... Kf8 {[%clk 0:00:54]} 44. h4 {[%clk 0:00:06.8]} 44...
Ng4 {[%clk 0:00:46.4]} 45. f3 {[%clk 0:00:07.3]} 45... Nf6 {[%clk 0:00:46]} 46.
g4 {[%clk 0:00:07.1]} 46... Bf4 {[%clk 0:00:45.5]} 47. g5 {[%clk 0:00:07.4]}
47... Ng8 {[%clk 0:00:44.5]} 48. Ng3 {[%clk 0:00:08.8]} 48... Ne7 {[%clk
0:00:44.3]} 49. Nxh5 {[%clk 0:00:10]} 49... Ng6 {[%clk 0:00:45.6]} 50. Kh3
{[%clk 0:00:07.1]} 50... Rc1 {[%clk 0:00:45.8]} 51. Nf6 {[%clk 0:00:06.4]} 51...
Rxb1 {[%clk 0:00:44.6]} 52. Rxb1 {[%clk 0:00:07.3]} 52... Rc1 {[%clk 0:00:44.6]}
53. Rxc1 {[%clk 0:00:06.2]} 53... Qxc1 {[%clk 0:00:45.2]} 54. Qf1 {[%clk
0:00:07.3]} 54... Bc8+ {[%clk 0:00:45.6]} 55. Ng4 {[%clk 0:00:08.3]} 55... Qd2
{[%clk 0:00:46.1]} 56. Qe2 {[%clk 0:00:09.2]} 56... Bxg5 {[%clk 0:00:43.3]} 57.
Qxd2 {[%clk 0:00:07.8]} 57... Bxd2 {[%clk 0:00:43.8]} 0-1

[Event "*** Titled Tuesday Blitz"]
[Site "Chess.com"]
[Date "2019.05.07"]
[Round "8"]
[White "volcanoexplorer"]
[Black "aa175"]
[Result "1-0"]
[WhiteElo "2594"]
[BlackElo "1964"]
[TimeControl "180+2"]
[EndTime "14:54:34 PDT"]
[Termination "volcanoexplorer won on time"]

1. e4 {[%clk 0:03:01.9]} 1... e5 {[%clk 0:02:59.3]} 2. Nf3 {[%clk 0:03:03.1]}
2... Nc6 {[%clk 0:03:00]} 3. Bc4 {[%clk 0:03:03.8]} 3... Nf6 {[%clk 0:02:59.6]}
4. d3 {[%clk 0:03:04.6]} 4... Bc5 {[%clk 0:03:00.5]} 5. O-O {[%clk 0:03:05.5]}
5... d6 {[%clk 0:03:01.6]} 6. c3 {[%clk 0:03:07.1]} 6... Bg4 {[%clk 0:03:01.3]}
7. Nbd2 {[%clk 0:03:07.6]} 7... a6 {[%clk 0:02:56.3]} 8. Bb3 {[%clk 0:03:08.2]}
8... Qd7 {[%clk 0:02:54.5]} 9. Re1 {[%clk 0:03:09.3]} 9... h5 {[%clk 0:02:37.1]}
10. Nf1 {[%clk 0:02:46.6]} 10... h4 {[%clk 0:02:34.1]} 11. Be3 {[%clk
0:02:36.4]} 11... h3 {[%clk 0:02:18.8]} 12. g3 {[%clk 0:02:34.1]} 12... Bxe3
{[%clk 0:02:11.7]} 13. Nxe3 {[%clk 0:02:34]} 13... O-O-O {[%clk 0:02:08.4]} 14.
Qe2 {[%clk 0:02:22.6]} 14... Nh5 {[%clk 0:01:55]} 15. Nxg4 {[%clk 0:01:41]}
15... Qxg4 {[%clk 0:01:52.4]} 16. Nh4 {[%clk 0:01:14.7]} 16... Qxe2 {[%clk
0:01:38.8]} 17. Rxe2 {[%clk 0:01:16.6]} 17... Nf4 {[%clk 0:01:33]} 18. Rd2
{[%clk 0:01:17.6]} 18... Rxh4 {[%clk 0:01:30.3]} 19. gxh4 {[%clk 0:01:16.6]}
19... Rh8 {[%clk 0:01:26.9]} 20. Bxf7 {[%clk 0:01:10.1]} 20... Rxh4 {[%clk
0:01:24.5]} 21. f3 {[%clk 0:01:11]} 21... Nd8 {[%clk 0:01:20.4]} 22. Bb3 {[%clk
0:01:04.6]} 22... Rh5 {[%clk 0:01:18.2]} 23. Kf2 {[%clk 0:01:04.1]} 23... Ng2
{[%clk 0:01:03.1]} 24. d4 {[%clk 0:00:54.2]} 24... Rg5 {[%clk 0:00:50.7]} 25.
dxe5 {[%clk 0:00:44.5]} 25... dxe5 {[%clk 0:00:52.6]} 26. Rad1 {[%clk
0:00:41.3]} 26... Nc6 {[%clk 0:00:45.6]} 27. Be6+ {[%clk 0:00:42.4]} 27... Kb8
{[%clk 0:00:45.2]} 28. Bxh3 {[%clk 0:00:43.4]} 28... Nf4 {[%clk 0:00:45.1]} 29.
Bg4 {[%clk 0:00:44.2]} 29... Rg6 {[%clk 0:00:43.1]} 30. Rd7 {[%clk 0:00:42.4]}
30... Rh6 {[%clk 0:00:39.1]} 31. h3 {[%clk 0:00:27.1]} 31... Nxh3+ {[%clk
0:00:29.1]} 32. Bxh3 {[%clk 0:00:29]} 32... Rxh3 {[%clk 0:00:29.9]} 33. Rxg7
{[%clk 0:00:30.2]} 33... Na5 {[%clk 0:00:25.3]} 34. Rd8+ {[%clk 0:00:25.2]}
34... Ka7 {[%clk 0:00:25.4]} 35. Kg2 {[%clk 0:00:22.5]} 35... Rh6 {[%clk
0:00:22.1]} 36. Rxc7 {[%clk 0:00:22.6]} 36... Rg6+ {[%clk 0:00:20.1]} 37. Kf2
{[%clk 0:00:23.3]} 37... Rh6 {[%clk 0:00:18.3]} 38. Rg8 {[%clk 0:00:21.3]} 38...
Rd6 {[%clk 0:00:14.5]} 39. Ke2 {[%clk 0:00:18.4]} 39... Rh6 {[%clk 0:00:09.7]}
40. b4 {[%clk 0:00:17.7]} 40... Nc6 {[%clk 0:00:05.3]} 41. Rgg7 {[%clk 0:00:19]}
41... Rh2+ {[%clk 0:00:05.1]} 42. Kd3 {[%clk 0:00:19.2]} 42... Nd8 {[%clk
0:00:04.5]} 43. Rgd7 {[%clk 0:00:16.4]} 43... Ne6 {[%clk 0:00:05.5]} 44. Rxb7+
{[%clk 0:00:17.4]} 44... Ka8 {[%clk 0:00:06.6]} 45. Ra7+ {[%clk 0:00:17.6]}
45... Kb8 {[%clk 0:00:07.6]} 46. Rxa6 {[%clk 0:00:18.7]} 46... Rh1 {[%clk
0:00:06]} 47. Kc4 {[%clk 0:00:16.7]} 47... Nc7 {[%clk 0:00:05.8]} 48. Rb6+
{[%clk 0:00:17.8]} 48... Kc8 {[%clk 0:00:06.8]} 49. Rg7 {[%clk 0:00:18]} 49...
Rf1 {[%clk 0:00:07]} 50. Rc6 {[%clk 0:00:18.5]} 50... Rxf3 {[%clk 0:00:07.8]}
51. Rcxc7+ {[%clk 0:00:20.4]} 51... Kb8 {[%clk 0:00:07.5]} 52. Rcf7 {[%clk
0:00:22.3]} 52... Rxf7 {[%clk 0:00:02.1]} 53. Rxf7 {[%clk 0:00:24.2]} 1-0

[Event "*** Titled Tuesday Blitz"]
[Site "Chess.com"]
[Date "2019.05.07"]
[Round "8"]
[White "GremioPrudente"]
[Black "Witik"]
[Result "0-1"]
[WhiteElo "2119"]
[BlackElo "2583"]
[TimeControl "180+2"]
[EndTime "14:54:45 PDT"]
[Termination "Witik won on time"]

1. Nf3 {[%clk 0:03:01.9]} 1... d5 {[%clk 0:03:00.3]} 2. d4 {[%clk 0:03:02.2]}
2... e6 {[%clk 0:03:01.1]} 3. c4 {[%clk 0:03:02.8]} 3... c6 {[%clk 0:03:02.2]}
4. e3 {[%clk 0:03:03.1]} 4... Bd6 {[%clk 0:03:03.2]} 5. Bd3 {[%clk 0:03:02.7]}
5... f5 {[%clk 0:03:04.4]} 6. O-O {[%clk 0:03:01.3]} 6... Nf6 {[%clk 0:03:05.3]}
7. b3 {[%clk 0:02:57.1]} 7... Qe7 {[%clk 0:03:06]} 8. Ne5 {[%clk 0:02:55.9]}
8... O-O {[%clk 0:03:05.1]} 9. Nd2 {[%clk 0:02:54.2]} 9... b6 {[%clk 0:03:04.3]}
10. Ndf3 {[%clk 0:02:43]} 10... Ne4 {[%clk 0:02:55.4]} 11. Nd2 {[%clk
0:02:22.6]} 11... Bb7 {[%clk 0:02:49.9]} 12. f3 {[%clk 0:02:20.8]} 12... Nf6
{[%clk 0:02:49]} 13. f4 {[%clk 0:02:19]} 13... Ne4 {[%clk 0:02:33.4]} 14. Ndf3
{[%clk 0:02:16.3]} 14... a5 {[%clk 0:02:20.6]} 15. a4 {[%clk 0:02:15.2]} 15...
Na6 {[%clk 0:02:21.3]} 16. Bd2 {[%clk 0:02:10.2]} 16... Nb4 {[%clk 0:02:20.7]}
17. Bxb4 {[%clk 0:02:10.1]} 17... axb4 {[%clk 0:02:15.7]} 18. Qc2 {[%clk
0:02:05.5]} 18... c5 {[%clk 0:02:16.5]} 19. Rac1 {[%clk 0:01:56.1]} 19... Kh8
{[%clk 0:02:04.4]} 20. Rce1 {[%clk 0:01:40.5]} 20... Rf6 {[%clk 0:01:59.8]} 21.
Bxe4 {[%clk 0:01:32.1]} 21... dxe4 {[%clk 0:01:45.9]} 22. Ng5 {[%clk 0:01:16.2]}
22... Raf8 {[%clk 0:01:33]} 23. Nh3 {[%clk 0:01:12.5]} 23... h6 {[%clk
0:01:31.9]} 24. Re2 {[%clk 0:01:01.3]} 24... g5 {[%clk 0:01:20.9]} 25. fxg5
{[%clk 0:00:58.7]} 25... hxg5 {[%clk 0:01:21.9]} 26. Ref2 {[%clk 0:00:37.7]}
26... Rh6 {[%clk 0:01:17.4]} 27. Qe2 {[%clk 0:00:33.5]} 27... cxd4 {[%clk
0:01:12.3]} 28. exd4 {[%clk 0:00:34.1]} 28... f4 {[%clk 0:00:54.5]} 29. Qg4
{[%clk 0:00:25.1]} 29... Rg8 {[%clk 0:00:45.1]} 30. a5 {[%clk 0:00:16.5]} 30...
Rh4 {[%clk 0:00:37.1]} 31. Nxf4 {[%clk 0:00:03.6]} 31... gxf4 {[%clk 0:00:13.8]}
32. Ng6+ {[%clk 0:00:02.7]} 32... Rxg6 {[%clk 0:00:14.6]} 33. Qxg6 {[%clk
0:00:03.5]} 33... e3 {[%clk 0:00:15.7]} 34. Re2 {[%clk 0:00:03.1]} 34... f3
{[%clk 0:00:15.6]} 35. gxf3 {[%clk 0:00:03]} 35... Bf4 {[%clk 0:00:12.6]} 36.
Qg2 {[%clk 0:00:03]} 36... bxa5 {[%clk 0:00:11.6]} 37. Qg6 {[%clk 0:00:03]}
37... Rh7 {[%clk 0:00:12]} 38. Rg2 {[%clk 0:00:03.3]} 38... Rg7 {[%clk
0:00:08.8]} 39. Qh5+ {[%clk 0:00:04.5]} 39... Kg8 {[%clk 0:00:10]} 40. Rxg7+
{[%clk 0:00:04.9]} 40... Qxg7+ {[%clk 0:00:11.2]} 41. Qg4 {[%clk 0:00:06.8]}
41... e2 {[%clk 0:00:09.5]} 42. Qxg7+ {[%clk 0:00:06.8]} 42... Kxg7 {[%clk
0:00:10.2]} 43. Re1 {[%clk 0:00:08.5]} 43... Bxf3 {[%clk 0:00:11.1]} 44. Kf2
{[%clk 0:00:09.5]} 44... Bh5 {[%clk 0:00:12.3]} 45. h4 {[%clk 0:00:09.1]} 45...
Kf6 {[%clk 0:00:13.4]} 46. d5 {[%clk 0:00:10.2]} 46... exd5 {[%clk 0:00:14.5]}
47. c5 {[%clk 0:00:10.5]} 47... Ke7 {[%clk 0:00:14.5]} 48. c6 {[%clk 0:00:11.6]}
48... Kd6 {[%clk 0:00:15.6]} 49. c7 {[%clk 0:00:11.8]} 49... Kxc7 {[%clk
0:00:16.7]} 50. Ra1 {[%clk 0:00:07.2]} 50... Bd2 {[%clk 0:00:17.3]} 0-1

[Event "*** Titled Tuesday Blitz"]
[Site "Chess.com"]
[Date "2019.05.07"]
[Round "8"]
[White "FancyPlaySyndrome"]
[Black "BlueWizzard"]
[Result "1-0"]
[WhiteElo "2539"]
[BlackElo "2732"]
[TimeControl "180+2"]
[EndTime "14:54:50 PDT"]
[Termination "FancyPlaySyndrome won by resignation"]

1. e4 {[%clk 0:03:01.9]} 1... a6 {[%clk 0:03:01.9]} 2. d4 {[%clk 0:03:02.3]}
2... g6 {[%clk 0:03:03.2]} 3. Bd3 {[%clk 0:03:01.5]} 3... Bg7 {[%clk 0:03:04.9]}
4. Ne2 {[%clk 0:03:02.9]} 4... Nc6 {[%clk 0:03:03.7]} 5. c3 {[%clk 0:03:03.2]}
5... d6 {[%clk 0:03:02.9]} 6. Nd2 {[%clk 0:02:59.7]} 6... e5 {[%clk 0:03:03.8]}
7. Nf3 {[%clk 0:02:47]} 7... Bg4 {[%clk 0:03:02]} 8. d5 {[%clk 0:02:44.2]} 8...
Nb8 {[%clk 0:02:49.9]} 9. Nd2 {[%clk 0:02:32.7]} 9... Ne7 {[%clk 0:02:48.6]} 10.
h3 {[%clk 0:02:31]} 10... Bxe2 {[%clk 0:02:40.4]} 11. Qxe2 {[%clk 0:02:30.7]}
11... Nd7 {[%clk 0:02:39.8]} 12. b4 {[%clk 0:02:25.2]} 12... a5 {[%clk
0:02:40.1]} 13. Nc4 {[%clk 0:02:14.5]} 13... axb4 {[%clk 0:02:34.7]} 14. cxb4
{[%clk 0:02:16.4]} 14... O-O {[%clk 0:02:36]} 15. O-O {[%clk 0:02:14.4]} 15...
Nxd5 {[%clk 0:02:26.7]} 16. exd5 {[%clk 0:01:54.9]} 16... e4 {[%clk 0:02:27.6]}
17. Bb2 {[%clk 0:01:36.6]} 17... exd3 {[%clk 0:02:27.7]} 18. Qxd3 {[%clk
0:01:38.5]} 18... Bxb2 {[%clk 0:02:22.4]} 19. Nxb2 {[%clk 0:01:40.4]} 19... Ne5
{[%clk 0:01:53.4]} 20. Qc3 {[%clk 0:01:40.7]} 20... Re8 {[%clk 0:01:48.8]} 21.
a4 {[%clk 0:01:35.6]} 21... f5 {[%clk 0:01:41.9]} 22. Rac1 {[%clk 0:01:28.7]}
22... Re7 {[%clk 0:01:35.1]} 23. f4 {[%clk 0:01:27.2]} 23... Nf7 {[%clk
0:01:35.3]} 24. Rfe1 {[%clk 0:01:22.3]} 24... Rxe1+ {[%clk 0:01:21]} 25. Rxe1
{[%clk 0:01:24.2]} 25... Qh4 {[%clk 0:01:20.2]} 26. Qe3 {[%clk 0:01:11.5]} 26...
g5 {[%clk 0:01:18.4]} 27. fxg5 {[%clk 0:01:04.9]} 27... Ne5 {[%clk 0:01:11.6]}
28. Rf1 {[%clk 0:00:29.5]} 28... Qxb4 {[%clk 0:01:08.7]} 29. Rf2 {[%clk
0:00:31]} 29... Re8 {[%clk 0:01:00.5]} 30. Qf4 {[%clk 0:00:28.2]} 30... Qxf4
{[%clk 0:00:37.9]} 31. Rxf4 {[%clk 0:00:28.9]} 31... c6 {[%clk 0:00:36.7]} 32.
dxc6 {[%clk 0:00:21.4]} 32... bxc6 {[%clk 0:00:38.6]} 33. Rxf5 {[%clk
0:00:22.9]} 33... c5 {[%clk 0:00:39.7]} 34. Rf6 {[%clk 0:00:23.8]} 34... Rb8
{[%clk 0:00:39.4]} 35. Nd1 {[%clk 0:00:18.9]} 35... d5 {[%clk 0:00:32.5]} 36.
Kh2 {[%clk 0:00:16.4]} 36... d4 {[%clk 0:00:32.3]} 37. Nf2 {[%clk 0:00:12.7]}
37... d3 {[%clk 0:00:28.5]} 38. Re6 {[%clk 0:00:13.9]} 38... Rb2 {[%clk
0:00:22.7]} 39. Kg3 {[%clk 0:00:15]} 39... Nc4 {[%clk 0:00:20]} 40. Rc6 {[%clk
0:00:09.1]} 40... Rb4 {[%clk 0:00:19]} 41. Rxc5 {[%clk 0:00:09.2]} 41... Nb2
{[%clk 0:00:20.3]} 42. Rd5 {[%clk 0:00:08.6]} 42... Rxa4 {[%clk 0:00:21.3]} 43.
h4 {[%clk 0:00:08.9]} 43... Ra3 {[%clk 0:00:22.4]} 44. Kg4 {[%clk 0:00:09.9]}
44... Kf7 {[%clk 0:00:23.8]} 45. Ne4 {[%clk 0:00:07]} 45... Ke6 {[%clk
0:00:24.9]} 46. Rd8 {[%clk 0:00:07.1]} 46... Ke5 {[%clk 0:00:25.8]} 47. Nf6
{[%clk 0:00:08.6]} 47... Ra4+ {[%clk 0:00:25.9]} 48. Kh5 {[%clk 0:00:08.7]}
48... Rd4 {[%clk 0:00:27.5]} 49. Ng4+ {[%clk 0:00:09.5]} 49... Ke4 {[%clk
0:00:28.2]} 50. Nf2+ {[%clk 0:00:11]} 50... Ke3 {[%clk 0:00:29.1]} 51. Rxd4
{[%clk 0:00:12.2]} 51... Kxd4 {[%clk 0:00:30.8]} 52. Nxd3 {[%clk 0:00:13.8]}
52... Nxd3 {[%clk 0:00:31.5]} 53. Kh6 {[%clk 0:00:15]} 53... Ke5 {[%clk
0:00:30]} 54. Kxh7 {[%clk 0:00:16.3]} 54... Kf5 {[%clk 0:00:30.2]} 55. g6 {[%clk
0:00:18]} 55... Ne5 {[%clk 0:00:25.7]} 56. g7 {[%clk 0:00:19.5]} 56... Nd7
{[%clk 0:00:17.7]} 57. g8=Q {[%clk 0:00:18.7]} 57... Nf6+ {[%clk 0:00:18.5]} 58.
Kg7 {[%clk 0:00:20.4]} 58... Nxg8 {[%clk 0:00:20.2]} 59. Kxg8 {[%clk 0:00:22.2]}
59... Kg4 {[%clk 0:00:21.5]} 60. g3 {[%clk 0:00:23.9]} 1-0

[Event "*** Titled Tuesday Blitz"]
[Site "Chess.com"]
[Date "2019.05.07"]
[Round "8"]
[White "Shant_Sargsyan"]
[Black "platy3"]
[Result "0-1"]
[WhiteElo "2954"]
[BlackElo "2803"]
[TimeControl "180+2"]
[EndTime "14:54:52 PDT"]
[Termination "platy3 won on time"]

1. d4 {[%clk 0:03:01.9]} 1... Nf6 {[%clk 0:03:01]} 2. c4 {[%clk 0:03:03.2]} 2...
e6 {[%clk 0:03:02.2]} 3. Nf3 {[%clk 0:03:04.2]} 3... d5 {[%clk 0:03:02.5]} 4.
Nc3 {[%clk 0:03:05.5]} 4... c6 {[%clk 0:03:02.2]} 5. Bg5 {[%clk 0:03:06.4]} 5...
Nbd7 {[%clk 0:02:56.8]} 6. e3 {[%clk 0:03:07.3]} 6... h6 {[%clk 0:02:56.1]} 7.
Bh4 {[%clk 0:03:07.4]} 7... Be7 {[%clk 0:02:51.6]} 8. Rc1 {[%clk 0:03:08.1]}
8... b6 {[%clk 0:02:48.5]} 9. cxd5 {[%clk 0:03:06.9]} 9... exd5 {[%clk
0:02:48.5]} 10. Bd3 {[%clk 0:03:07.4]} 10... Bb7 {[%clk 0:02:48.2]} 11. O-O
{[%clk 0:03:08.9]} 11... O-O {[%clk 0:02:49]} 12. Qe2 {[%clk 0:03:06.7]} 12...
a5 {[%clk 0:02:46.5]} 13. Rfe1 {[%clk 0:02:55.5]} 13... Re8 {[%clk 0:02:45]} 14.
Bb1 {[%clk 0:02:49.4]} 14... a4 {[%clk 0:02:35.7]} 15. Qc2 {[%clk 0:02:40.7]}
15... a3 {[%clk 0:02:29.6]} 16. b3 {[%clk 0:02:39.4]} 16... Nf8 {[%clk
0:02:26.2]} 17. Ne5 {[%clk 0:02:39.5]} 17... c5 {[%clk 0:02:20.3]} 18. Qf5
{[%clk 0:02:31.5]} 18... Rc8 {[%clk 0:02:16.8]} 19. Nb5 {[%clk 0:02:25.1]} 19...
Ba6 {[%clk 0:01:46.7]} 20. Na7 {[%clk 0:02:25.1]} 20... Rc7 {[%clk 0:01:31.6]}
21. Nac6 {[%clk 0:02:25.7]} 21... Qd6 {[%clk 0:01:30.5]} 22. Nxe7+ {[%clk
0:02:24.8]} 22... Rcxe7 {[%clk 0:01:24.4]} 23. f4 {[%clk 0:01:37]} 23... Bc8
{[%clk 0:01:15.2]} 24. Qc2 {[%clk 0:01:37.6]} 24... cxd4 {[%clk 0:01:12]} 25.
exd4 {[%clk 0:01:37.7]} 25... Ba6 {[%clk 0:00:56.9]} 26. Qf5 {[%clk 0:01:27.8]}
26... Qe6 {[%clk 0:00:53.5]} 27. Qc2 {[%clk 0:00:36.3]} 27... Qd6 {[%clk
0:00:51.8]} 28. g4 {[%clk 0:00:31.8]} 28... Rc8 {[%clk 0:00:44.2]} 29. Qf5
{[%clk 0:00:33]} 29... Rxc1 {[%clk 0:00:40.3]} 30. Rxc1 {[%clk 0:00:34.9]} 30...
Rc7 {[%clk 0:00:41.6]} 31. Re1 {[%clk 0:00:18.8]} 31... Bc8 {[%clk 0:00:42.2]}
32. Qd3 {[%clk 0:00:17.1]} 32... Nxg4 {[%clk 0:00:39.4]} 33. Bg3 {[%clk
0:00:07.7]} 33... Nf6 {[%clk 0:00:16.7]} 34. f5 {[%clk 0:00:09.6]} 34... Qb4
{[%clk 0:00:16]} 35. Rf1 {[%clk 0:00:04.8]} 35... Rc3 {[%clk 0:00:17.1]} 36. Be1
{[%clk 0:00:05.5]} 36... Rxd3 {[%clk 0:00:16.2]} 37. Bxb4 {[%clk 0:00:07]} 37...
Rxd4 {[%clk 0:00:17.5]} 38. Bxa3 {[%clk 0:00:06.8]} 38... Rd2 {[%clk 0:00:06.2]}
39. Nc6 {[%clk 0:00:06.4]} 39... Bd7 {[%clk 0:00:03.2]} 40. Bb4 {[%clk
0:00:07.7]} 40... Re2 {[%clk 0:00:04]} 41. Ne7+ {[%clk 0:00:08.2]} 41... Kh7
{[%clk 0:00:05]} 42. Nxd5 {[%clk 0:00:06]} 42... Nxd5 {[%clk 0:00:05.3]} 43.
Bxf8 {[%clk 0:00:07.5]} 43... Ne3 {[%clk 0:00:05.3]} 44. Rc1 {[%clk 0:00:05.3]}
44... Rg2+ {[%clk 0:00:03.5]} 45. Kh1 {[%clk 0:00:06.7]} 45... Rf2 {[%clk
0:00:03.1]} 46. f6+ {[%clk 0:00:08.2]} 46... g6 {[%clk 0:00:04.1]} 47. Bd6
{[%clk 0:00:03.7]} 47... Bc6+ {[%clk 0:00:05.2]} 48. Kg1 {[%clk 0:00:03.5]}
48... Rg2+ {[%clk 0:00:06.6]} 49. Kh1 {[%clk 0:00:05.1]} 49... Rc2+ {[%clk
0:00:08.2]} 0-1